bitfinex-derivatives/quotes_SOLF0:USTF0_20241231
["timestamp","ask_amount","ask_price","bid_price","bid_amount"]
[1735665832132,86.33655221,197.8,197.6,15.34717751]
[1735665832325,2.5336,197.71,197.63,12.26717751]
[1735665832527,12.26717751,197.75,197.63,12.26717751]
[1735665832930,2.5337,197.71,197.67,2.5341]
[1735665833133,12.26717751,197.75,197.65,3.08]
[1735665834330,2.5338,197.69,197.65,5.6143]
[1735665834634,12.26717751,197.75,197.65,3.08]
[1735665835131,2.534,197.68,197.65,3.08]
[1735665835723,2.5346,197.64,197.57,12.26717751]
[1735665835932,12.26717751,197.69,197.58,3.08]
[1735665836132,4.5456,197.68,197.58,3.08]
[1735665836327,4.5456,197.68,197.54,15.17549244]
[1735665836529,12.26717751,197.66,197.55,3.08]
[1735665836929,2.5353,197.58,197.55,3.08]
[1735665837225,12.26717751,197.66,197.55,3.08]
[1735665837424,16.81277751,197.68,197.55,3.08]
[1735665837934,2.5345,197.65,197.55,3.08]
[1735665838130,16.81277751,197.68,197.55,3.08]
[1735665838436,4.5456,197.68,197.57,12.26717751]
[1735665839235,16.81277751,197.68,197.55,3.08]
[1735665839627,16.81277751,197.68,197.56,2.5354]
[1735665840034,2.5349,197.61,197.57,3.08]
[1735665841334,2.5348,197.62,197.57,17.88247751]
[1735665841543,2.5348,197.62,197.57,15.34717751]
[1735665841837,2.5348,197.62,197.58,3.12]
[1735665842238,2.5348,197.62,197.58,5.6552]
[1735665842735,2.5348,197.62,197.58,3.12]
[1735665843363,4.5456,197.68,197.58,3.12]
[1735665844030,2.5347,197.63,197.58,3.12]
[1735665844535,4.5456,197.68,197.6,12.26717751]
[1735665844736,2.5344,197.65,197.6,12.26717751]
[1735665845036,4.5456,197.68,197.6,12.26717751]
[1735665845240,2.5346,197.63,197.6,2.535]
[1735665845941,2.9534,197.68,197.6,12.26717751]
[1735665846735,2.5343,197.66,197.61,12.26717751]
[1735665848537,2.5343,197.66,197.62,2.5347]
[1735665848739,2.9534,197.68,197.63,3.12]
[1735665849343,2.5344,197.65,197.63,3.12]
[1735665849532,2.9534,197.68,197.63,3.12]
[1735665849940,2.9534,197.68,197.58,14.80237751]
[1735665850142,2.9534,197.68,197.62,3.12]
[1735665850445,2.9534,197.68,197.54,2.90831493]
[1735665850649,12.26717751,197.66,197.58,3.12]
[1735665850840,1.5592,197.65,197.58,3.12]
[1735665851343,1.5592,197.65,197.54,2.90831493]
[1735665851646,12.26717751,197.6,197.48,3.12]
[1735665851842,2.9931,197.59,197.48,3.12]
[1735665852349,2.9931,197.59,197.47,2.5366]
[1735665852537,2.9931,197.59,197.48,3.12]
[1735665853144,2.9931,197.59,197.48,15.38717751]
[1735665853342,2.5359,197.54,197.48,15.38717751]
[1735665853540,2.9931,197.59,197.52,2.5359]
[1735665853847,2.9931,197.59,197.53,3.12]
[1735665854148,5.5283,197.59,197.54,2.5357]
[1735665854337,2.9931,197.59,197.54,2.5357]
[1735665854538,4.6792,197.65,197.54,2.5357]
[1735665854743,2.5349,197.61,197.56,2.5355]
[1735665854953,3.0274,197.64,197.56,2.5355]
[1735665855555,3.0274,197.64,197.57,2.5354]
[1735665855757,3.0274,197.64,197.58,3.12]
[1735665856446,2.535,197.61,197.58,3.12]
[1735665856652,3.0274,197.64,197.58,3.12]
[1735665856949,2.5356,197.56,197.54,3.12]
[1735665857252,3.0274,197.64,197.54,3.12]
[1735665858242,3.0274,197.64,197.54,15.38717751]
[1735665858455,2.5351,197.6,197.56,2.5355]
[1735665858755,3.0274,197.64,197.54,15.38717751]
[1735665858954,2.5351,197.59,197.54,15.38717751]
[1735665859148,3.0274,197.64,197.54,15.38717751]
[1735665859957,12.26717751,197.63,197.52,3.12]
[1735665860250,12.26717751,197.63,197.53,3.12]
[1735665861349,12.26717751,197.63,197.52,3.12]
[1735665861851,2.5355,197.56,197.53,2.5358]
[1735665862052,2.5355,197.56,197.52,3.12]
[1735665862552,2.5354,197.57,197.52,3.12]
[1735665862749,7.24370201,197.64,197.52,3.12]
[1735665863149,2.5352,197.59,197.54,2.5356]
[1735665863448,7.24370201,197.64,197.54,2.5356]
[1735665864050,7.24370201,197.64,197.54,2.5357]
[1735665865055,7.24370201,197.64,197.55,2.5356]
[1735665867964,2.5352,197.59,197.55,2.5356]
[1735665868156,7.24370201,197.64,197.53,2.5359]
[1735665868862,2.5355,197.57,197.53,2.5359]
[1735665873365,7.24370201,197.64,197.53,2.5359]
[1735665873561,2.5356,197.56,197.53,2.5359]
[1735665874067,7.24370201,197.64,197.52,3.12]
[1735665874268,2.5356,197.56,197.52,5.656]
[1735665874865,2.5357,197.55,197.52,5.656]
[1735665875066,19.51087952,197.64,197.52,5.656]
[1735665875967,2.5356,197.56,197.52,5.656]
[1735665876267,12.26717751,197.61,197.52,3.08]
[1735665876765,2.5358,197.54,197.52,3.08]
[1735665877066,12.26717751,197.61,197.52,3.08]
[1735665877968,12.26717751,197.62,197.52,3.08]
[1735665878567,2.5358,197.54,197.52,3.08]
[1735665878964,7.24370201,197.64,197.52,3.08]
[1735665879268,7.24370201,197.64,197.53,12.26717751]
[1735665879670,2.5355,197.57,197.54,2.5358]
[1735665880370,2.5358,197.54,197.52,3.08]
[1735665880765,12.26717751,197.63,197.52,3.08]
[1735665881366,2.5356,197.56,197.53,2.5359]
[1735665881859,2.5354,197.57,197.53,2.5359]
[1735665882060,12.26717751,197.63,197.52,15.34717751]
[1735665882461,2.5354,197.58,197.52,15.34717751]
[1735665882664,12.26717751,197.63,197.52,15.34717751]
[1735665882867,7.24370201,197.64,197.52,15.34717751]
[1735665883068,2.5351,197.6,197.52,15.34717751]
[1735665883266,7.24370201,197.64,197.56,2.5354]
[1735665883464,40.14840979,197.69,197.57,3.08]
[1735665883669,2.5345,197.65,197.6,2.5349]
[1735665883971,6.97030807,197.7,197.61,3.08]
[1735665884168,2.5345,197.64,197.61,3.08]
[1735665884377,6.97030807,197.7,197.61,5.6148]
[1735665884574,6.97030807,197.7,197.61,3.08]
[1735665884874,15.25497751,197.71,197.61,3.08]
[1735665885372,15.25497751,197.71,197.61,5.6148]
[1735665885966,15.25497751,197.71,197.61,3.08]
[1735665886167,15.25497751,197.71,197.5,20.98662863]
[1735665886168,12.26717751,197.65,197.56,3.08]
[1735665886573,1.5076,197.64,197.56,3.08]
[1735665886967,2.5352,197.59,197.56,3.08]
[1735665887172,2.984,197.63,197.56,3.08]
[1735665887476,2.5354,197.58,197.56,3.08]
[1735665889173,2.5354,197.57,197.56,3.08]
[1735665890375,15.25117751,197.63,197.49,2.5363]
[1735665890578,15.25117751,197.63,197.5,3.08]
[1735665891079,15.25117751,197.63,197.49,2.5363]
[1735665891279,15.25117751,197.63,197.5,3.08]
[1735665891482,2.5359,197.53,197.5,3.08]
[1735665891682,15.25117751,197.63,197.5,3.08]
[1735665891881,15.25117751,197.63,197.51,2.5361]
[1735665893482,2.5357,197.55,197.51,2.5361]
[1735665894286,2.5359,197.54,197.5,3.08]
[1735665894579,15.25117751,197.63,197.5,3.08]
[1735665894880,2.536,197.53,197.5,3.08]
[1735665896583,2.536,197.53,197.51,3.08]
[1735665897882,2.5358,197.54,197.51,5.6161]
[1735665898087,12.26717751,197.62,197.51,5.6161]
[1735665898888,2.5357,197.55,197.51,5.6161]
[1735665900088,2.5357,197.55,197.51,3.08]
[1735665900287,2.5355,197.57,197.52,12.26717751]
[1735665900489,2.984,197.63,197.52,12.26717751]
[1735665900880,2.5352,197.59,197.55,2.5355]
[1735665901185,2.984,197.63,197.56,3.08]
[1735665901589,2.5352,197.59,197.56,3.08]
[1735665902189,2.5352,197.59,197.56,5.6154]
[1735665903289,2.984,197.63,197.56,5.6154]
[1735665903290,2.5353,197.58,197.56,5.6154]
[1735665903685,2.984,197.63,197.56,5.6154]
[1735665904087,2.5351,197.6,197.57,2.5353]
[1735665904291,2.984,197.63,197.57,7.88521512]
[1735665905493,2.5352,197.59,197.57,7.88521512]
[1735665906191,2.535,197.6,197.57,10.42051512]
[1735665906688,2.535,197.6,197.57,7.88521512]
[1735665906892,2.5349,197.61,197.58,2.5352]
[1735665907087,4.09476647,197.65,197.59,7.88521512]
[1735665907288,4.09476647,197.65,197.56,3.08]
[1735665907289,4.09476647,197.65,197.62,7.88521512]
[1735665907495,4.09476647,197.65,197.62,11.04521512]
[1735665907794,4.09476647,197.65,197.62,3.16]
[1735665907994,2.5346,197.63,197.62,3.16]
[1735665909690,4.09476647,197.65,197.62,3.16]
[1735665909886,4.09476647,197.65,197.62,11.04521512]
[1735665910285,4.5886,197.7,197.62,11.04521512]
[1735665910286,4.5886,197.7,197.64,10.41971512]
[1735665910487,2.5341,197.67,197.64,10.41971512]
[1735665911290,2.5343,197.66,197.64,7.88521512]
[1735665911897,4.5886,197.7,197.64,7.88521512]
[1735665912193,3.0084,197.7,197.68,7.88521512]
[1735665912392,3.0084,197.7,197.69,3.16]
[1735665912592,7.88521512,197.75,197.69,3.16]
[1735665912794,10.89531512,197.75,197.69,3.16]
[1735665913187,2.5337,197.7,197.69,3.16]
[1735665914691,3.0101,197.75,197.69,3.16]
[1735665914887,2.5335,197.72,197.69,3.16]
[1735665915488,2.5332,197.74,197.7,2.5337]
[1735665915791,3.0101,197.75,197.69,15.46627238]
[1735665916296,86.33655221,197.8,197.69,15.46627238]
[1735665916497,89.39645221,197.8,197.69,15.46627238]
[1735665917192,2.5328,197.77,197.72,2.5333]
[1735665917388,2.5328,197.77,197.69,15.46627238]
[1735665917586,2.5328,197.77,197.72,12.30627238]
[1735665917790,89.39645221,197.8,197.72,12.30627238]
[1735665918192,2.5326,197.79,197.72,12.30627238]
[1735665918402,4.26143225,197.85,197.75,12.30627238]
[1735665918597,7.24373225,197.85,197.76,3.16]
[1735665918797,7.24373225,197.85,197.76,5.6929]
[1735665919389,2.5324,197.81,197.76,5.6929]
[1735665919589,2.5324,197.81,197.76,3.16]
[1735665919793,2.5324,197.81,197.77,2.5328]
[1735665920594,2.5322,197.82,197.77,2.5328]
[1735665920899,85.08429965,197.91,197.81,12.30627238]
[1735665921090,2.9823,197.9,197.78,12.30627238]
[1735665921407,2.5323,197.81,197.78,12.30627238]
[1735665921695,2.5323,197.81,197.79,3.16]
[1735665923601,12.30627238,197.89,197.79,3.16]
[1735665925099,2.5323,197.82,197.79,3.16]
[1735665925603,2.5321,197.83,197.79,5.6925]
[1735665925793,2.5321,197.83,197.79,3.16]
[1735665925998,2.9823,197.9,197.79,3.16]
[1735665927200,2.532,197.84,197.79,5.6925]
[1735665927400,2.9823,197.9,197.79,5.6925]
[1735665928406,2.9823,197.9,197.79,3.16]
[1735665928605,2.5323,197.82,197.79,3.16]
[1735665929707,2.9823,197.9,197.79,3.16]
[1735665930107,2.9823,197.9,197.79,5.6925]
[1735665930299,2.5322,197.83,197.79,5.6925]
[1735665930502,2.9823,197.9,197.79,5.6925]
[1735665930908,2.5316,197.87,197.79,5.6925]
[1735665931108,2.9823,197.9,197.79,5.6925]
[1735665931700,2.5322,197.82,197.8,3.16]
[1735665932101,206.80630517,198.08,197.81,12.30627238]
[1735665932310,16.80987238,197.98,197.88,12.30627238]
[1735665932515,16.80987238,197.98,197.85,12.30627238]
[1735665932706,12.30627238,197.95,197.89,3.1]
[1735665933009,12.30627238,197.95,197.82,12.30627238]
[1735665933010,12.30627238,197.95,197.88,3.1]
[1735665933401,2.5313,197.89,197.88,3.1]
[1735665933805,12.30627238,197.95,197.82,12.30627238]
[1735665934003,2.5318,197.85,197.83,3.1]
[1735665934408,2.5318,197.85,197.82,12.30627238]
[1735665934607,2.5318,197.85,197.83,3.1]
[1735665936213,2.5318,197.85,197.84,7.86380879]
[1735665936615,2.5318,197.85,197.84,10.96380879]
[1735665939514,2.9832,197.9,197.84,10.96380879]
[1735665939818,2.9832,197.9,197.87,7.86380879]
[1735665941419,2.5314,197.88,197.85,7.86380879]
[1735665941716,2.9832,197.9,197.87,7.86380879]
[1735665943420,2.5314,197.88,197.87,7.86380879]
[1735665946023,2.5313,197.89,197.87,7.86380879]
[1735665947023,3.1153,197.94,197.87,7.86380879]
[1735665947024,2.5312,197.9,197.87,7.86380879]
[1735665947325,2.5312,197.9,197.89,7.86380879]
[1735665947526,2.5312,197.9,197.89,10.96380879]
[1735665949224,2.5312,197.9,197.89,3.1]
[1735665949423,2.5312,197.9,197.89,10.96380879]
[1735665951129,7.86380879,197.93,197.75,52.64]
[1735665951329,7.86380879,197.93,197.85,7.86380879]
[1735665951529,7.86380879,197.93,197.86,3.1]
[1735665951926,7.86380879,197.91,197.87,3.1]
[1735665952627,2.5314,197.88,197.87,3.1]
[1735665954524,7.86380879,197.91,197.85,7.86380879]
[1735665954729,2.5317,197.86,197.85,7.86380879]
[1735665954930,2.5317,197.86,197.85,10.96380879]
[1735665955632,10.08560807,197.94,197.87,2.5315]
[1735665955834,10.08560807,197.94,197.89,7.86380879]
[1735665956026,3.1153,197.94,197.9,3.1]
[1735665956224,2.531,197.91,197.9,3.1]
[1735665964037,2.5309,197.92,197.9,3.1]
[1735665964227,3.1153,197.94,197.91,7.86380879]
[1735665964429,3.1153,197.94,197.93,7.86380879]
[1735665964841,95.42690145,197.96,197.9,3.1]
[1735665965033,95.42690145,197.96,197.84,47.22439419]
[1735665965236,95.42690145,197.96,197.89,7.86380879]
[1735665965542,7.86380879,197.94,197.9,3.06]
[1735665967443,2.531,197.91,197.9,3.06]
[1735665969546,7.86380879,197.92,197.84,47.22439419]
[1735665969754,7.86380879,197.92,197.71,164.98655738]
[1735665969755,7.86380879,197.9,197.85,3.06]
[1735665970244,2.5317,197.86,197.85,3.06]
[1735665971449,2.5319,197.84,197.83,7.86380879]
[1735665971650,2.5319,197.84,197.83,10.92380879]
[1735665975552,2.5319,197.84,197.83,3.06]
[1735665975755,2.5319,197.84,197.83,10.92380879]
[1735665980689,2.5319,197.84,197.83,3.06]
[1735665980891,2.5319,197.84,197.83,10.92380879]
[1735665982793,1.5456,197.9,197.83,10.92380879]
[1735665982988,2.5318,197.85,197.83,3.06]
[1735665983989,2.5318,197.85,197.84,7.86380879]
[1735665986070,1.5456,197.9,197.84,7.86380879]
[1735665986263,2.9722,197.91,197.87,7.86380879]
[1735665986465,2.9722,197.91,197.89,7.86380879]
[1735665987462,2.5312,197.9,197.89,7.86380879]
[1735665990256,2.9722,197.91,197.75,73.60662863]
[1735665990462,7.86380879,197.9,197.75,73.60662863]
[1735665990661,7.86380879,197.88,197.81,7.86380879]
[1735665990863,7.86380879,197.86,197.81,7.86380879]
[1735665991062,7.86380879,197.86,197.82,3.06]
[1735665991964,2.532,197.83,197.82,3.06]
[1735665992370,7.86380879,197.84,197.79,3.02]
[1735665992556,3.0442,197.83,197.79,3.02]
[1735665992759,7.86380879,197.82,197.78,3.02]
[1735665992966,7.86380879,197.82,197.65,20.98662863]
[1735665992967,7.86380879,197.8,197.65,20.98662863]
[1735665993164,7.86380879,197.8,197.73,7.86380879]
[1735665993365,7.86380879,197.8,197.74,3.02]
[1735665993864,2.5331,197.75,197.74,3.02]
[1735665994166,9.37300879,197.8,197.73,3.02]
[1735665994167,2.5332,197.74,197.73,3.02]
[1735665994868,2.5332,197.74,197.73,10.88380879]
[1735665995165,2.5329,197.77,197.73,10.88380879]
[1735665995369,2.5329,197.77,197.75,7.86380879]
[1735665995564,1.5092,197.8,197.75,7.86380879]
[1735665995766,2.5329,197.76,197.75,7.86380879]
[1735665996863,2.5328,197.78,197.75,7.86380879]
[1735665997065,3.0442,197.83,197.77,7.86380879]
[1735665997260,3.0442,197.83,197.79,7.86380879]
[1735665997468,2.5324,197.8,197.79,7.86380879]
[1735665997968,3.0442,197.83,197.78,3.02]
[1735665998171,2.5326,197.8,197.79,7.86380879]
[1735665998870,2.5326,197.79,197.78,3.02]
[1735666001270,2.5326,197.79,197.78,10.88380879]
[1735666002267,2.5332,197.74,197.68,50.91272105]
[1735666002462,2.5332,197.74,197.73,7.86380879]
[1735666002663,2.5332,197.74,197.73,10.88380879]
[1735666003275,7.86380879,197.82,197.73,10.88380879]
[1735666003571,7.86380879,197.82,197.75,7.86380879]
[1735666004072,2.5329,197.76,197.75,7.86380879]
[1735666007362,2.5331,197.75,197.73,3.02]
[1735666007567,2.5331,197.75,197.74,7.86380879]
[1735666007871,2.5326,197.79,197.74,7.86380879]
[1735666008067,2.5326,197.79,197.78,7.86380879]
[1735666008270,2.5326,197.79,197.78,10.88380879]
[1735666009775,2.5324,197.81,197.78,10.88380879]
[1735666009980,4.70933049,197.85,197.8,7.86380879]
[1735666010271,4.70933049,197.85,197.82,7.86380879]
[1735666010571,2.532,197.83,197.82,7.86380879]
[1735666013369,2.5323,197.81,197.78,10.88380879]
[1735666013570,12.57313928,197.85,197.78,10.88380879]
[1735666013976,2.5326,197.79,197.78,3.02]
[1735666018981,7.86380879,197.83,197.77,7.86380879]
[1735666019176,2.5329,197.76,197.75,10.88380879]
[1735666019877,2.5329,197.76,197.75,3.02]
[1735666020678,7.86380879,197.79,197.69,2.5338]
[1735666020878,1.4869,197.78,197.73,3.02]
[1735666021084,7.86380879,197.77,197.73,3.02]
[1735666021383,2.5332,197.74,197.73,3.02]
[1735666022876,2.5332,197.74,197.73,10.88380879]
[1735666023887,2.5332,197.74,197.73,10.86380879]
[1735666024283,2.5332,197.74,197.73,3.0]
[1735666024478,2.5335,197.72,197.71,7.86380879]
[1735666024686,2.5335,197.72,197.71,10.86380879]
[1735666027688,2.5335,197.72,197.71,7.86380879]
[1735666027888,2.5335,197.72,197.71,10.86380879]
[1735666028188,2.5335,197.72,197.71,3.0]
[1735666028384,7.86380879,197.77,197.69,7.86380879]
[1735666028591,2.5337,197.7,197.69,7.86380879]
[1735666028779,2.5337,197.7,197.69,10.86380879]
[1735666030811,2.5337,197.7,197.69,7.86380879]
[1735666030992,2.5331,197.75,197.69,10.86380879]
[1735666031291,1.4869,197.78,197.73,7.86380879]
[1735666031889,2.5332,197.74,197.73,7.86380879]
[1735666035191,2.5332,197.74,197.69,3.0]
[1735666035192,2.5337,197.7,197.69,3.0]
[1735666035384,7.86380879,197.75,197.63,52.62]
[1735666035585,7.86380879,197.75,197.68,7.86380879]
[1735666036487,2.5339,197.69,197.66,2.5342]
[1735666036688,2.5339,197.69,197.68,7.86380879]
[1735666036891,1.4869,197.78,197.64,3.0]
[1735666037090,2.5336,197.72,197.64,3.0]
[1735666037284,1.4869,197.78,197.64,3.0]
[1735666037488,1.4869,197.78,197.75,7.86380879]
[1735666037489,2.5329,197.76,197.75,7.86380879]
[1735666037691,2.5329,197.76,197.75,10.86380879]
[1735666039490,2.5329,197.77,197.75,10.86380879]
[1735666039696,2.5329,197.77,197.76,7.86380879]
[1735666041496,2.5329,197.76,197.75,3.0]
[1735666047093,7.86380879,197.82,197.74,7.86380879]
[1735666047289,2.5331,197.75,197.74,7.86380879]
[1735666047496,2.5331,197.75,197.74,3.0]
[1735666049519,2.5327,197.79,197.74,3.0]
[1735666049819,7.86380879,197.82,197.75,7.86380879]
[1735666050413,2.5329,197.77,197.75,7.86380879]
[1735666050712,7.86380879,197.82,197.75,7.86380879]
[1735666051421,2.5329,197.76,197.75,7.86380879]
[1735666052021,2.5329,197.76,197.75,10.86380879]
[1735666054307,2.5329,197.76,197.75,3.0]
[1735666054503,7.86380879,197.8,197.73,7.86380879]
[1735666054698,7.86380879,197.78,197.66,3.31055542]
[1735666054904,1.5577,197.83,197.68,7.86380879]
[1735666054905,7.86380879,197.76,197.68,7.86380879]
[1735666055101,1.4585,197.75,197.69,3.0]
[1735666055502,2.5337,197.7,197.69,3.0]
[1735666056103,2.5337,197.7,197.69,10.86380879]
[1735666056303,35.99833676,197.92,197.69,10.86380879]
[1735666056512,27.88123228,197.81,197.69,3.0]
[1735666056707,27.88123228,197.81,197.78,7.86380879]
[1735666057100,27.88123228,197.81,197.77,3.0]
[1735666057602,2.5327,197.78,197.77,3.0]
[1735666062610,2.5327,197.79,197.77,3.0]
[1735666063809,1.556,197.84,197.77,3.0]
[1735666064111,2.5327,197.78,197.77,3.0]
[1735666064910,1.556,197.84,197.77,3.0]
[1735666066404,2.5327,197.79,197.77,3.0]
[1735666066712,1.556,197.84,197.77,3.0]
[1735666068144,2.5327,197.79,197.77,3.0]
[1735666070044,1.556,197.84,197.77,3.0]
[1735666070656,2.5325,197.8,197.77,3.0]
[1735666071314,1.556,197.84,197.77,15.29889914]
[1735666071454,6.14363049,197.85,197.77,15.29889914]
[1735666071455,4.70933049,197.85,197.8,12.29889914]
[1735666071860,2.532,197.84,197.8,14.83129914]
[1735666072051,3.056,197.9,197.8,12.29889914]
[1735666072442,2.5318,197.86,197.82,2.5321]
[1735666072640,2.5318,197.86,197.83,3.0]
[1735666073643,2.5314,197.89,197.84,2.5318]
[1735666073949,2.5314,197.89,197.83,15.29889914]
[1735666073950,98.63445573,197.93,197.83,15.29889914]
[1735666074150,98.63445573,197.93,197.86,12.29889914]
[1735666075137,2.5314,197.89,197.86,12.29889914]
[1735666076024,2.5314,197.88,197.86,12.29889914]
[1735666077319,98.63445573,197.93,197.87,3.0]
[1735666077815,2.5314,197.88,197.87,3.0]
[1735666079820,2.5319,197.85,197.83,12.29889914]
[1735666080021,2.5319,197.85,197.84,3.0]
[1735666080223,2.5319,197.85,197.84,10.86389108]
[1735666080624,7.86389108,197.91,197.74,0.4764]
[1735666080916,2.5323,197.81,197.75,3.0]
[1735666081527,2.5323,197.81,197.74,0.4764]
[1735666081727,2.5323,197.81,197.75,3.0]
[1735666082020,2.5323,197.81,197.8,7.86389108]
[1735666082223,2.5323,197.81,197.79,12.29043649]
[1735666084416,2.5323,197.81,197.8,3.0]
[1735666085021,3.0192,197.88,197.8,3.0]
[1735666086125,2.5323,197.81,197.8,3.0]
[1735666087926,3.0192,197.88,197.76,14.82333649]
[1735666088227,2.5327,197.78,197.77,3.0]
[1735666088424,5.0631,197.87,197.67,0.4767]
[1735666088625,12.29043649,197.83,197.7,12.29043649]
[1735666088826,1.5924,197.82,197.71,3.0]
[1735666089229,1.5444,197.81,197.71,3.0]
[1735666089428,1.5061,197.8,197.71,3.0]
[1735666090131,2.5333,197.74,197.71,3.0]
[1735666092926,2.5331,197.75,197.72,2.5334]
[1735666093130,1.5061,197.8,197.71,3.0]
[1735666094436,2.5332,197.74,197.71,5.5335]
[1735666096037,1.5061,197.8,197.71,3.0]
[1735666096227,2.5332,197.74,197.71,5.5335]
[1735666097737,2.5332,197.74,197.71,17.82393649]
[1735666097937,2.5329,197.77,197.73,2.5333]
[1735666098138,2.5329,197.77,197.75,12.29043649]
[1735666098342,2.5329,197.77,197.76,3.0]
[1735666104441,2.5329,197.77,197.76,10.86941062]
[1735666106143,2.5329,197.77,197.76,3.0]
[1735666106342,2.5329,197.77,197.76,10.86941062]
[1735666106747,2.5327,197.79,197.76,10.86941062]
[1735666106943,1.5061,197.8,197.78,7.86941062]
[1735666107139,1.5061,197.8,197.76,3.0]
[1735666107344,2.5328,197.78,197.76,3.0]
[1735666107548,1.5061,197.8,197.76,3.0]
[1735666107742,1.5061,197.8,197.78,7.86941062]
[1735666108450,2.5331,197.76,197.7,2.5337]
[1735666108647,2.5331,197.76,197.75,7.86941062]
[1735666109965,2.5331,197.76,197.75,10.86941062]
[1735666110143,2.5331,197.76,197.75,3.0]
[1735666110342,2.5331,197.76,197.75,10.86941062]
[1735666111147,2.5331,197.76,197.75,3.0]
[1735666114742,2.5331,197.76,197.75,10.86941062]
[1735666115448,2.5331,197.76,197.75,7.86941062]
[1735666117247,9.37551062,197.8,197.73,3.0]
[1735666117746,9.37551062,197.8,197.73,10.86941062]
[1735666118348,7.86941062,197.78,197.73,3.0]
[1735666118551,2.5332,197.74,197.73,3.0]
[1735666118754,2.5332,197.74,197.73,10.86941062]
[1735666120744,2.5332,197.74,197.73,3.0]
[1735666120944,2.5332,197.74,197.73,10.86941062]
[1735666124243,2.5332,197.74,197.73,7.86941062]
[1735666126754,2.5333,197.73,197.72,3.0]
[1735666127051,2.5333,197.73,197.72,10.86941062]
[1735666128458,2.5333,197.73,197.72,3.0]
[1735666128655,2.5333,197.73,197.72,10.86941062]
[1735666129459,2.534,197.68,197.65,53.75159011]
[1735666129657,2.534,197.68,197.67,3.0]
[1735666130655,2.534,197.68,197.67,10.86941062]
[1735666132860,2.534,197.68,197.67,7.86941062]
[1735666133062,3.0,197.73,197.58,34.82911783]
[1735666133362,7.86941062,197.68,197.61,7.86941062]
[1735666135392,7.86941062,197.63,197.52,21.1328928]
[1735666135594,7.86941062,197.63,197.56,7.86941062]
[1735666136291,2.5355,197.57,197.56,7.86941062]
[1735666137179,7.86941062,197.63,197.51,23.6689928]
[1735666137390,7.86941062,197.59,197.52,3.0]
[1735666137595,7.86941062,197.61,197.52,3.0]
[1735666137979,2.5358,197.55,197.52,3.0]
[1735666138175,2.5358,197.55,197.54,7.86941062]
[1735666138381,2.5358,197.55,197.52,3.0]
[1735666138382,7.86941062,197.61,197.52,3.0]
[1735666138575,7.86941062,197.61,197.53,7.86941062]
[1735666138786,2.5359,197.54,197.52,3.0]
[1735666138981,2.5359,197.54,197.53,7.86941062]
[1735666139183,2.5359,197.54,197.52,3.0]
[1735666139588,2.5359,197.54,197.53,7.86941062]
[1735666140281,2.5352,197.59,197.53,7.86941062]
[1735666140480,7.86941062,197.59,197.51,3.0]
[1735666140887,7.86941062,197.59,197.52,7.86941062]
[1735666141672,1.5829,197.62,197.54,7.86941062]
[1735666141866,9.45231062,197.62,197.54,7.86941062]
[1735666142060,2.5356,197.56,197.54,7.86941062]
[1735666142268,7.86941062,197.6,197.51,3.0]
[1735666142671,1.5235,197.59,197.52,7.86941062]
[1735666143062,1.47,197.58,197.52,7.86941062]
[1735666143765,1.47,197.58,197.54,7.86941062]
[1735666143967,9.45231062,197.62,197.56,7.86941062]
[1735666144161,2.5354,197.58,197.56,7.86941062]
[1735666144365,9.45231062,197.62,197.56,10.86941062]
[1735666145172,1.5829,197.62,197.56,10.86941062]
[1735666145773,2.5354,197.57,197.56,10.86941062]
[1735666146079,1.5829,197.62,197.56,10.86941062]
[1735666148074,2.535,197.61,197.56,3.0]
[1735666148274,104.83990019,197.63,197.56,5.5355]